bitfinex/quotes_BTCUSD_20260310
["timestamp","ask_amount","ask_price","bid_price","bid_amount"]
[1773140943618,0.06,70795.0,70781.0,0.07063949]
[1773140943619,0.03,70794.0,70781.0,0.07063949]
[1773140943872,0.03,70792.0,70782.0,0.00148]
[1773140944097,0.03,70792.0,70783.0,0.24809584]
[1773140944316,0.03,70792.0,70784.0,0.00451215]
[1773140944531,0.03,70792.0,70785.0,0.24809584]
[1773140944754,0.06,70795.0,70785.0,0.24809584]
[1773140944755,0.03,70791.0,70785.0,0.24809584]
[1773140945852,0.06,70795.0,70784.0,0.00451215]
[1773140945853,0.03,70794.0,70786.0,0.31873127]
[1773140946574,0.03,70794.0,70786.0,0.07063543]
[1773140946753,0.03,70794.0,70787.0,0.24809584]
[1773140946950,0.06,70795.0,70787.0,0.25260799]
[1773140947370,0.13062668,70795.0,70787.0,0.25260799]
[1773140947868,0.06,70795.0,70787.0,0.25260799]
[1773140948710,0.06,70795.0,70785.0,0.07063601]
[1773140949085,0.06,70795.0,70785.0,0.07063643]
[1773140950139,0.07062745,70794.0,70787.0,0.00022]
[1773140950802,0.13062707,70795.0,70787.0,0.00022]
[1773140951151,0.06,70795.0,70787.0,0.07085423]
[1773140951387,0.13062689,70795.0,70787.0,0.00022]
[1773140952351,0.07062399,70798.0,70787.0,0.07085415]
[1773140952552,0.07062399,70798.0,70788.0,0.24809584]
[1773140952553,0.03,70798.0,70788.0,0.24809584]
[1773140952758,0.03,70798.0,70789.0,0.00497816]
[1773140952928,0.03,70798.0,70790.0,0.24809584]
[1773140953347,0.03,70797.0,70790.0,0.24809584]
[1773140954235,0.03,70795.0,70787.0,0.00022]
[1773140954457,0.03,70793.0,70787.0,0.00022]
[1773140954656,0.29125367,70793.0,70783.0,0.00148]
[1773140954908,0.26125367,70786.0,70779.0,0.0017]
[1773140955168,0.29618967,70785.0,70777.0,0.00148]
[1773140955386,0.29630312,70785.0,70777.0,0.00148]
[1773140955608,0.03011345,70785.0,70777.0,0.24957584]
[1773140955810,0.03011345,70785.0,70777.0,0.24809584]
[1773140956025,0.03,70784.0,70777.0,0.24957584]
[1773140956235,0.03,70784.0,70777.0,0.254554]
[1773140956454,0.03,70784.0,70778.0,0.07064342]
[1773140956657,0.03,70784.0,70780.0,0.24809584]
[1773140957032,0.03,70783.0,70780.0,0.24809584]
[1773140957260,0.00011345,70785.0,70780.0,0.24809584]
[1773140957880,0.00011345,70785.0,70778.0,0.07064342]
[1773140958246,0.00011345,70785.0,70777.0,0.07732225]
[1773140958439,0.00011345,70785.0,70777.0,0.07234409]
[1773140958977,0.00011345,70785.0,70777.0,0.32043993]
[1773140959182,0.00011345,70785.0,70777.0,0.07086383]
[1773140959376,0.00011345,70785.0,70777.0,0.07086423]
[1773140959998,0.07063198,70790.0,70778.0,0.24809584]
[1773140960327,0.00148,70790.0,70779.0,0.253074]
[1773140960708,0.07063244,70789.0,70779.0,0.253074]
[1773140960881,0.07063244,70789.0,70779.0,0.3237164]
[1773140961082,0.03,70788.0,70779.0,0.3237164]
[1773140961281,0.07063063,70791.0,70780.0,0.24809584]
[1773140961483,0.07082998,70792.0,70782.0,0.24809584]
[1773140961803,0.07230998,70792.0,70782.0,0.24809584]
[1773140962006,0.07082998,70792.0,70782.0,0.24809584]
[1773140962231,0.03,70791.0,70782.0,0.24809584]
[1773140962989,0.03,70789.0,70782.0,0.24809584]
[1773140964077,0.03,70790.0,70782.0,0.24809584]
[1773140964904,0.26125367,70790.0,70775.0,0.07087552]
[1773140965104,0.03,70783.0,70775.0,0.07087587]
[1773140965306,0.034936,70783.0,70775.0,0.00023]
[1773140965633,0.29618967,70783.0,70775.0,0.00023]
[1773140966409,0.004936,70782.0,70772.0,0.00022]
[1773140966612,0.03,70777.0,70767.0,0.07087415]
[1773140967103,0.03,70773.0,70754.0,0.54004025]
[1773140967225,0.00148,70772.0,70754.0,0.00148]
[1773140967568,0.26125367,70767.0,70750.0,0.07090042]
[1773140967784,0.03,70762.0,70751.0,0.07066997]
[1773140967947,0.03,70762.0,70750.0,0.07090042]
[1773140968146,0.03,70762.0,70752.0,0.07088921]
[1773140968553,0.03,70762.0,70752.0,0.00022]
[1773140968753,0.03,70760.0,70752.0,0.00033345]
[1773140968997,0.10066176,70760.0,70752.0,0.00033345]
[1773140969319,0.10559776,70760.0,70752.0,0.00033345]
[1773140969521,0.10559776,70760.0,70730.0,0.21121941]
[1773140969522,0.00475804,70754.0,70730.0,0.21121941]
[1773140969775,0.00475804,70754.0,70727.0,0.32882084]
[1773140969776,0.03,70748.0,70736.0,0.07068484]
[1773140970097,0.03,70748.0,70734.0,0.07068721]
[1773140970098,0.004936,70747.0,70734.0,0.07068721]
[1773140970351,0.034936,70745.0,70731.0,0.32026533]
[1773140970656,0.034936,70745.0,70732.0,0.00148]
[1773140970912,0.034936,70745.0,70732.0,0.24957584]
[1773140971131,0.034936,70745.0,70734.0,0.07068736]
[1773140971339,0.26125367,70746.0,70734.0,0.3202632]
[1773140971340,0.26110367,70746.0,70734.0,0.3202632]
[1773140971513,0.26110367,70746.0,70734.0,0.07216736]
[1773140971712,0.26110367,70746.0,70735.0,0.24809584]
[1773140972727,0.33177936,70746.0,70735.0,0.24809584]
[1773140972885,0.33636035,70746.0,70735.0,0.24809584]
[1773140973094,0.33686536,70746.0,70734.0,0.0017]
[1773140973307,0.33686536,70746.0,70734.0,0.07238733]
[1773140974409,0.33686536,70746.0,70734.0,0.07090733]
[1773140975075,0.33668744,70746.0,70734.0,0.07090733]
[1773140975662,0.24936756,70745.0,70734.0,0.07238733]
[1773140976569,0.004936,70744.0,70734.0,0.00022]
[1773140976777,0.03,70742.0,70734.0,0.07090699]
[1773140976994,0.24443156,70743.0,70734.0,0.07090699]
[1773140977362,0.004936,70745.0,70734.0,0.07090699]
[1773140977363,0.006416,70745.0,70734.0,0.07090699]
[1773140977563,0.006416,70745.0,70734.0,0.33648416]
[1773140977802,0.036416,70745.0,70734.0,0.33648416]
[1773140977998,0.03148,70745.0,70734.0,0.07090699]
[1773140978201,0.0706632,70759.0,70737.0,0.26557717]
[1773140978368,0.07065853,70763.0,70741.0,0.32719292]
[1773140978573,0.00148,70764.0,70746.0,0.26557717]
[1773140978800,0.03148,70764.0,70749.0,0.00497816]
[1773140978995,0.03,70764.0,70752.0,0.26557717]
[1773140979196,0.03148,70764.0,70752.0,0.26557717]
[1773140979396,0.03,70762.0,70752.0,0.33624598]
[1773140979996,0.03,70762.0,70752.0,0.26557717]
[1773140980374,0.03,70755.0,70743.0,0.00148]
[1773140980577,0.03,70753.0,70741.0,0.07227359]
[1773140980784,0.00148,70760.0,70744.0,0.26557717]
[1773140980984,0.00148,70760.0,70748.0,0.26557717]
[1773140981186,0.00148,70760.0,70748.0,0.27039862]
[1773140981315,0.07213839,70763.0,70749.0,0.07067237]
[1773140981523,0.03,70762.0,70749.0,0.07067237]
[1773140982976,0.27914439,70762.0,70748.0,0.34255158]
[1773140983149,0.03,70762.0,70750.0,0.00482145]
[1773140983373,0.03,70762.0,70750.0,0.27039862]
[1773140983560,0.10066005,70762.0,70751.0,0.07067037]
[1773140983768,0.03,70761.0,70751.0,0.07067037]
[1773140984288,0.03,70759.0,70741.0,0.39798596]
[1773140984495,0.07065756,70764.0,70742.0,0.33773642]
[1773140984496,0.03,70753.0,70742.0,0.33773642]
[1773140984705,0.00471283,70752.0,70742.0,0.33773642]
[1773140984851,0.00471283,70752.0,70742.0,0.33625642]
[1773140985193,0.03,70751.0,70743.0,0.00148]
[1773140985647,0.03,70751.0,70744.0,0.07067737]
[1773140985847,0.07214554,70756.0,70745.0,0.26557717]
[1773140986461,0.03,70755.0,70745.0,0.26557717]
[1773140987038,0.0002,70751.0,70745.0,0.26557717]
[1773140987440,0.03,70755.0,70745.0,0.25891969]
[1773140987689,0.10066655,70755.0,70745.0,0.0706759]
[1773140987887,0.10066655,70755.0,70746.0,0.25891969]
[1773140989577,0.10066655,70755.0,70746.0,0.32959505]
[1773140989718,0.10066655,70755.0,70738.0,0.07068252]
[1773140989928,0.03,70748.0,70738.0,0.07068332]
[1773140990124,0.03,70748.0,70739.0,0.0721622]
[1773140990334,0.03,70748.0,70741.0,0.07079393]
[1773140990847,0.25984281,70749.0,70741.0,0.07079393]
[1773140991280,0.07067039,70751.0,70750.0,0.00017798]
[1773140991453,0.00450415,70757.0,70742.0,0.00476295]
[1773140991790,0.00148,70756.0,70743.0,0.26368264]
[1773140992195,0.0751689,70757.0,70743.0,0.26368264]
[1773140992373,0.0706544,70767.0,70747.0,0.15989707]
[1773140992577,0.07519294,70773.0,70759.0,0.25891969]
[1773140993201,0.00454415,70773.0,70759.0,0.26368264]
[1773140993383,0.03023,70775.0,70761.0,0.26368264]
[1773140993724,0.03023,70775.0,70760.0,0.07066139]
[1773140993725,0.03023,70775.0,70765.0,0.25891969]
[1773140993940,0.03023,70775.0,70765.0,0.26039969]
[1773140994229,0.03023,70775.0,70766.0,0.00476295]
[1773140994428,0.03023,70775.0,70767.0,0.25891969]
[1773140994635,0.10087674,70775.0,70767.0,0.25891969]
[1773140996929,0.10087674,70775.0,70765.0,0.00148]
[1773140997482,0.10087674,70775.0,70758.0,0.07066258]
[1773140997636,0.25547662,70768.0,70753.0,0.07066794]
[1773140997843,0.03454415,70765.0,70754.0,0.00148]
[1773140999476,0.03454415,70765.0,70755.0,0.07066638]
[1773141000537,0.03,70761.0,70748.0,0.07067309]
[1773141000843,0.00454415,70757.0,70748.0,0.00011367]
[1773141001642,0.03,70755.0,70748.0,0.00011367]
[1773141002629,0.03,70754.0,70748.0,0.00011367]
[1773141003724,0.03454415,70757.0,70748.0,0.00011367]
[1773141004551,0.10520866,70757.0,70748.0,0.00011367]
[1773141005409,0.10520859,70757.0,70748.0,0.00011367]
[1773141005613,0.03454415,70757.0,70748.0,0.00011367]
[1773141005932,0.03,70755.0,70748.0,0.00011367]
[1773141006136,0.03454415,70755.0,70748.0,0.00011367]
[1773141006335,0.03,70753.0,70746.0,0.0017]
[1773141006583,0.03,70749.0,70746.0,0.0017]
[1773141007138,0.03,70749.0,70748.0,0.00022]
[1773141007394,0.00454415,70765.0,70749.0,0.25502541]
[1773141007687,0.03454415,70763.0,70749.0,0.25502541]
[1773141007938,0.03,70763.0,70749.0,0.25502541]
[1773141008134,0.03,70761.0,70752.0,0.25502541]
[1773141008327,0.07065783,70764.0,70752.0,0.25502541]
[1773141008328,0.0002,70768.0,70752.0,0.25650541]
[1773141008548,0.00168,70768.0,70755.0,0.00476295]
[1773141008747,0.00168,70768.0,70756.0,0.25502541]
[1773141009298,0.10233343,70768.0,70756.0,0.25502541]
[1773141009856,0.10085343,70768.0,70756.0,0.25502541]
[1773141010290,0.03,70766.0,70755.0,0.00148]
[1773141010572,0.0047273,70763.0,70755.0,0.00148]
[1773141010727,0.03,70761.0,70755.0,0.00148]
[1773141010920,0.0347273,70761.0,70755.0,0.00148]
[1773141012107,0.0347273,70754.0,70746.0,0.00022]
[1773141012280,0.0047273,70753.0,70746.0,0.00022]
[1773141013129,0.0347273,70752.0,70746.0,0.00022]
[1773141014369,0.26243832,70753.0,70746.0,0.00022]
[1773141014370,0.03,70753.0,70748.0,0.00022]
[1773141014694,0.03,70751.0,70748.0,0.00022]
[1773141014994,0.03,70749.0,70748.0,0.00022]
[1773141016123,0.03,70750.0,70748.0,0.00022]
[1773141017248,0.03,70749.0,70748.0,0.00022]
[1773141018611,0.03,70749.0,70740.0,0.3315463]
[1773141018835,0.10067244,70749.0,70740.0,0.00595375]
[1773141018998,0.03,70747.0,70740.0,0.00595375]
[1773141019424,0.0047273,70744.0,70740.0,0.00595375]
[1773141019863,0.03,70745.0,70740.0,0.00595375]
[1773141020035,0.03,70745.0,70740.0,0.00545375]
[1773141020499,0.03,70748.0,70741.0,0.25502541]
[1773141020799,0.07067046,70751.0,70741.0,0.25502541]
[1773141021437,0.03,70748.0,70734.0,0.00022]
[1773141021761,0.0047273,70741.0,70734.0,0.00022]
[1773141022548,0.0347273,70739.0,70734.0,0.00022]
[1773141023382,0.0047273,70739.0,70734.0,0.00022]
[1773141023590,0.03,70741.0,70734.0,0.00022]
[1773141023806,0.0347273,70739.0,70734.0,0.00022]
[1773141024919,0.03,70738.0,70734.0,0.00022]
[1773141026043,0.03,70737.0,70734.0,0.00022]
[1773141027087,0.03,70736.0,70734.0,0.00022]
[1773141027310,0.26243832,70742.0,70734.0,0.07090659]
[1773141027512,0.07688549,70744.0,70734.0,0.07090659]
[1773141027706,0.07066666,70755.0,70736.0,0.00494879]
[1773141027909,0.00148,70754.0,70740.0,0.00494879]
[1773141028066,0.03,70754.0,70741.0,0.25502541]
[1773141028476,0.03,70752.0,70741.0,0.25502541]
[1773141028674,0.0347273,70752.0,70741.0,0.25502541]
[1773141029383,0.0347273,70752.0,70742.0,0.07067937]
[1773141029544,0.10539675,70752.0,70742.0,0.25502541]
[1773141029842,0.10539686,70752.0,70742.0,0.25502541]
[1773141032197,0.0347273,70752.0,70742.0,0.3257043]
[1773141032352,0.0047273,70758.0,70743.0,0.25502541]
[1773141032570,0.0047273,70758.0,70745.0,0.25502541]
[1773141032571,0.07066353,70758.0,70745.0,0.25502541]
[1773141032758,0.07065701,70765.0,70750.0,0.00494879]
[1773141032958,0.00148,70764.0,70753.0,0.25502541]
[1773141033355,0.03,70764.0,70753.0,0.25502541]
[1773141033595,0.03,70761.0,70744.0,0.24411655]
[1773141033849,0.0047273,70760.0,70746.0,0.24411655]
[1773141034018,0.03,70761.0,70746.0,0.24411655]
[1773141034229,0.00582,70768.0,70750.0,0.24411655]
[1773141034444,0.00582,70768.0,70754.0,0.24411655]
[1773141034445,0.07647374,70768.0,70754.0,0.24411655]
[1773141034859,0.0347273,70767.0,70754.0,0.24411655]
[1773141037614,0.03,70767.0,70755.0,0.07066638]
[1773141037857,0.03,70767.0,70758.0,0.24411655]
[1773141037858,0.10065502,70767.0,70758.0,0.24411655]
[1773141039139,0.10070864,70767.0,70758.0,0.24411655]
[1773141039722,0.03,70766.0,70759.0,0.24411655]
[1773141040132,5.362e-05,70767.0,70759.0,0.24411655]
[1773141040335,0.00025362,70767.0,70759.0,0.24411655]
[1773141041103,0.00025362,70767.0,70759.0,0.31477868]
[1773141041308,0.10090891,70767.0,70759.0,0.24411655]
[1773141041527,0.26116175,70764.0,70746.0,0.00464419]
[1773141041726,0.00464535,70759.0,70747.0,0.00148]
[1773141041963,0.00464535,70759.0,70748.0,0.24411655]
[1773141043096,0.00464535,70759.0,70749.0,0.07067237]
[1773141043388,0.03,70759.0,70750.0,0.24411655]
[1773141043944,0.00148,70766.0,70752.0,0.24876074]
[1773141044157,0.03148,70766.0,70752.0,0.24876074]
[1773141044361,0.03612535,70766.0,70752.0,0.24876074]
[1773141045014,0.03612535,70766.0,70753.0,0.24559655]
[1773141045386,0.03,70764.0,70753.0,0.31626445]
[1773141046157,0.03,70758.0,70753.0,0.0721479]
[1773141046312,0.0767813,70766.0,70754.0,0.24411655]
[1773141047217,0.03,70765.0,70754.0,0.24411655]
[1773141047886,0.10065649,70765.0,70754.0,0.31478375]
[1773141049629,0.00489105,70762.0,70753.0,0.00148]
[1773141049793,0.03,70760.0,70753.0,0.00148]
[1773141050833,0.03,70761.0,70752.0,0.07214936]
[1773141051065,0.03489105,70761.0,70750.0,0.07067052]
[1773141051272,0.00489105,70760.0,70752.0,0.00148]
[1773141051479,0.00489105,70760.0,70751.0,0.00148]
[1773141052199,0.00489105,70760.0,70752.0,0.07066938]
[1773141052870,0.00489105,70760.0,70752.0,0.07088938]
[1773141053089,0.07065739,70764.0,70753.0,0.26188897]
[1773141053688,0.0706568,70765.0,70753.0,0.26188897]
[1773141053891,0.00148,70765.0,70755.0,0.26188897]
[1773141054076,0.03148,70765.0,70755.0,0.26188897]
[1773141054276,0.03,70763.0,70755.0,0.26188897]
[1773141054716,0.03,70763.0,70755.0,0.26174087]
[1773141054922,0.03,70763.0,70754.0,0.0706673]
[1773141055446,0.03,70763.0,70753.0,0.07066828]
[1773141056203,0.10065926,70763.0,70753.0,0.07066828]
[1773141056406,0.10065926,70763.0,70752.0,0.07088938]
[1773141056950,0.03,70763.0,70752.0,0.33277835]
[1773141057123,0.10065841,70763.0,70752.0,0.33277835]
[1773141057501,0.10065841,70763.0,70752.0,0.33263023]
[1773141057704,0.10065841,70763.0,70752.0,0.26210897]
[1773141057902,0.00489105,70762.0,70752.0,0.33277795]
[1773141058284,0.03,70761.0,70752.0,0.33277795]
[1773141059441,0.03,70761.0,70752.0,0.00022]
[1773141059603,0.03489105,70761.0,70752.0,0.00022]
[1773141060026,0.03489105,70761.0,70752.0,0.07088917]
[1773141060429,0.03148,70765.0,70753.0,0.26188897]
[1773141060655,0.03148,70765.0,70753.0,0.26682223]
[1773141060896,0.10213669,70765.0,70753.0,0.26682223]
[1773141061124,0.03,70765.0,70753.0,0.26682223]
[1773141061289,0.03,70765.0,70752.0,0.07088917]
[1773141061290,0.03,70764.0,70755.0,0.26188897]
[1773141061630,0.0002,70763.0,70755.0,0.26188897]
[1773141062370,0.0302,70763.0,70756.0,0.07066538]
[1773141062595,0.00191,70775.0,70759.0,0.26188897]
[1773141062800,0.11269967,70783.0,70762.0,0.00493326]
[1773141062801,0.07078424,70783.0,70762.0,0.00493326]
[1773141063130,0.07078424,70783.0,70767.0,0.26188897]
[1773141063322,0.07078424,70783.0,70769.0,0.26682223]
[1773141063549,0.03,70782.0,70769.0,0.26188897]
[1773141063769,0.03,70782.0,70769.0,0.26682223]
[1773141063945,0.03,70782.0,70769.0,0.26188897]
[1773141064186,0.03,70780.0,70769.0,0.26188897]
[1773141064302,0.03,70780.0,70768.0,0.00148]
[1773141064303,0.03,70775.0,70768.0,0.00148]
[1773141064523,0.03,70775.0,70768.0,0.00133186]
[1773141064524,0.03489105,70775.0,70768.0,0.00133186]
[1773141065143,0.29391136,70775.0,70768.0,0.00133186]
[1773141065772,0.29391136,70775.0,70761.0,0.24817811]
[1773141066001,0.29391136,70775.0,70767.0,0.00148]
[1773141066438,0.29391136,70775.0,70761.0,0.24817811]
[1773141066439,0.03,70773.0,70766.0,0.00148]
[1773141066629,0.03,70768.0,70765.0,0.00148]
[1773141066772,0.03,70768.0,70763.0,0.00148]
[1773141066978,0.03,70768.0,70759.0,5.362e-05]
[1773141067200,0.03,70765.0,70759.0,0.07071586]
[1773141067403,0.00489105,70764.0,70759.0,5.362e-05]
[1773141067597,0.28902031,70765.0,70759.0,0.07071569]
[1773141067798,0.03,70765.0,70759.0,0.07071569]
[1773141068198,0.03,70764.0,70759.0,0.07071569]
[1773141069072,0.03,70764.0,70759.0,5.362e-05]
[1773141069257,0.07064755,70774.0,70760.0,0.24817811]
[1773141069458,0.07064755,70774.0,70760.0,0.25311137]
[1773141069671,0.07064755,70774.0,70761.0,0.24817811]
[1773141069874,0.0002,70764.0,70761.0,0.25303181]
[1773141070437,0.03,70773.0,70761.0,0.0048537]
[1773141070653,0.03,70773.0,70761.0,0.25303181]
[1773141071003,0.03,70773.0,70763.0,0.07065839]
[1773141071204,0.03,70775.0,70764.0,0.24817811]
[1773141071408,0.03,70775.0,70765.0,0.00148]
[1773141071810,0.03,70775.0,70764.0,0.24817811]
[1773141072070,0.03,70775.0,70764.0,0.24965811]
[1773141072272,0.03,70775.0,70764.0,0.24950996]
[1773141072444,0.03472496,70775.0,70764.0,0.24950996]
[1773141073142,0.03,70767.0,70765.0,0.07065639]
[1773141073354,0.03,70767.0,70765.0,0.24817811]
[1773141074182,0.03,70767.0,70764.0,0.07213706]
[1773141074340,0.03,70767.0,70764.0,0.32031517]
[1773141074546,0.03,70767.0,70765.0,0.00148]
[1773141074760,0.03,70767.0,70765.0,0.00248]
[1773141075166,0.03,70767.0,70765.0,0.00148]
[1773141075374,0.03,70767.0,70765.0,0.07213613]
[1773141075587,0.03,70767.0,70765.0,0.07065613]
[1773141076245,0.03,70767.0,70759.0,0.24823173]
[1773141076246,0.03,70767.0,70759.0,0.31889383]
[1773141076444,0.03,70767.0,70760.0,0.00148]
[1773141076839,0.29374527,70767.0,70765.0,0.00022]
[1773141077038,0.03,70767.0,70765.0,0.00022]
[1773141077657,0.03,70771.0,70765.0,0.00022]
[1773141078514,0.07084711,70775.0,70766.0,0.07213539]
[1773141078515,0.0002,70775.0,70766.0,0.07213539]
[1773141078694,0.0002,70775.0,70767.0,0.00148]
[1773141079446,0.0002,70775.0,70768.0,0.0706534]
[1773141079722,0.03,70777.0,70769.0,0.24817811]
[1773141080734,0.03,70776.0,70769.0,0.24817811]
[1773141081714,0.03,70779.0,70770.0,0.0706514]
[1773141081915,0.10064256,70779.0,70770.0,0.0706514]
[1773141082136,0.03,70779.0,70770.0,0.0706514]
[1773141082309,0.07064145,70780.0,70771.0,0.25303181]
[1773141082510,0.00472496,70778.0,70765.0,0.07087547]
[1773141082712,0.03,70774.0,70768.0,0.00148]
[1773141085092,0.03,70774.0,70768.0,0.07213312]
[1773141085678,0.03,70774.0,70768.0,0.07235312]
[1773141088204,0.00492496,70775.0,70768.0,0.07235312]
[1773141089506,0.0002,70775.0,70768.0,0.07235312]
[1773141090576,0.0302,70775.0,70768.0,0.07235312]
[1773141090995,0.26522527,70779.0,70768.0,0.32053123]
[1773141091212,0.07212339,70779.0,70768.0,0.07235312]
[1773141091431,0.07064441,70777.0,70768.0,0.07235312]
[1773141091635,0.03,70776.0,70768.0,0.07235312]
[1773141092644,0.03,70775.0,70768.0,0.07235312]
[1773141092843,0.00148,70781.0,70769.0,0.24817811]
[1773141093259,0.0017046,70781.0,70769.0,0.24817811]
[1773141093569,0.07063942,70784.0,70772.0,0.24822827]
[1773141093570,0.03,70784.0,70772.0,0.24822827]
[1773141093757,0.03,70784.0,70774.0,0.24822827]
[1773141093960,0.25869189,70790.0,70775.0,0.0048537]
[1773141094211,0.25869189,70790.0,70776.0,0.30783346]
[1773141094562,0.0002,70779.0,70778.0,0.24822827]
[1773141094788,0.0301432,70789.0,70778.0,0.24822827]
[1773141095267,0.0301432,70789.0,70779.0,0.00148]
[1773141095415,0.00472496,70788.0,70779.0,0.00148]
[1773141097547,0.00472496,70788.0,70779.0,0.07212207]
[1773141100307,0.03,70787.0,70779.0,0.07212207]
[1773141100728,0.03,70787.0,70779.0,0.07064207]
[1773141101340,0.0301432,70789.0,70779.0,0.07064207]
[1773141101494,0.0002,70792.0,70782.0,0.24822827]
[1773141102464,0.0002,70792.0,70783.0,0.07063843]
[1773141102636,0.00057926,70792.0,70783.0,0.07063843]
[1773141103845,0.03,70791.0,70781.0,0.07064042]
[1773141104050,0.03466095,70791.0,70782.0,0.00148]
[1773141104613,0.03466095,70791.0,70783.0,0.07063843]
[1773141104614,0.03,70791.0,70783.0,0.07063843]
[1773141104986,0.00057926,70792.0,70783.0,0.07063843]
[1773141105529,0.00057926,70792.0,70784.0,0.24822827]
[1773141106277,0.03057926,70792.0,70784.0,0.24822827]
[1773141106878,0.03057926,70792.0,70785.0,0.07063643]
[1773141107336,0.00057926,70792.0,70785.0,0.07063643]
[1773141108725,0.00057926,70792.0,70772.0,0.0706494]
[1773141108726,0.03,70791.0,70772.0,0.0706494]
[1773141108919,0.26335284,70785.0,70775.0,0.07064552]
[1773141109134,0.03478013,70784.0,70775.0,0.07064552]
[1773141109545,0.03478013,70784.0,70778.0,0.00022]
[1773141114732,0.03,70783.0,70778.0,0.00022]
[1773141115031,0.03478013,70783.0,70778.0,0.00022]
[1773141115328,0.03,70780.0,70778.0,0.00022]
[1773141116415,0.03478013,70780.0,70773.0,0.00148]
[1773141116827,0.03478013,70780.0,70773.0,0.07212791]
[1773141117023,0.03478013,70780.0,70773.0,0.07064791]
[1773141117393,0.03478013,70780.0,70778.0,0.00022]
[1773141117813,0.28014609,70780.0,70778.0,0.00022]
[1773141118670,0.03,70780.0,70778.0,0.00022]
[1773141119254,0.03,70780.0,70773.0,0.07064791]
[1773141121443,0.11,70781.0,70772.0,0.07064754]
[1773141121444,0.03,70778.0,70772.0,0.07064754]
[1773141123278,0.03,70775.0,70771.0,0.00148]
[1773141123506,0.10715604,70775.0,70771.0,0.00148]
[1773141123703,0.03,70775.0,70771.0,0.00148]
[1773141124542,0.24536596,70779.0,70771.0,0.00148]
[1773141124733,0.07715604,70780.0,70771.0,0.00148]
[1773141124949,0.07715604,70780.0,70772.0,0.00022]
[1773141125178,0.07715604,70780.0,70773.0,0.07064841]
[1773141125587,0.03,70779.0,70773.0,0.07064841]
[1773141126913,0.03,70783.0,70774.0,0.24728094]
[1773141127280,0.10063848,70783.0,70775.0,0.07064641]
[1773141127483,0.03,70783.0,70775.0,0.07064641]
[1773141128317,0.07063222,70791.0,70776.0,0.24728094]
[1773141128540,0.07063222,70791.0,70777.0,0.00148]
[1773141128829,0.10921024,70791.0,70780.0,0.05324243]
[1773141129167,0.07063244,70789.0,70780.0,0.05324243]
[1773141129516,0.03,70788.0,70780.0,0.05324243]
[1773141130128,0.03,70788.0,70780.0,0.05472243]
[1773141130337,0.03,70781.0,70780.0,0.12536285]
[1773141130557,0.03857802,70790.0,70780.0,0.07212042]
[1773141130698,0.03857802,70790.0,70780.0,0.12536285]
[1773141130907,0.04005802,70795.0,70780.0,0.12536285]
[1773141131114,0.04017175,70795.0,70781.0,0.24728094]
[1773141131317,0.03,70794.0,70781.0,0.24728094]
[1773141131515,0.06857802,70794.0,70781.0,0.24728094]
[1773141132562,0.13920594,70794.0,70782.0,0.07063942]
[1773141132772,0.0002,70791.0,70782.0,0.07063942]
[1773141132983,0.0002,70791.0,70783.0,0.24728094]
[1773141133424,0.03,70793.0,70783.0,0.24728094]
[1773141134240,0.03011373,70795.0,70783.0,0.24728094]
[1773141134574,0.1007402,70795.0,70785.0,0.05324243]
[1773141134792,0.03,70793.0,70781.0,0.07063954]
[1773141134966,0.32684501,70795.0,70786.0,0.00148]
[1773141134967,0.06857802,70789.0,70786.0,0.00148]
[1773141135326,0.03,70789.0,70786.0,0.00148]
[1773141135866,0.06857802,70789.0,70786.0,0.00148]
[1773141136602,0.03,70786.0,70784.0,0.00148]
[1773141137609,0.03,70785.0,70784.0,0.07211719]
[1773141137979,0.03,70785.0,70784.0,0.00148]
[1773141138231,0.03,70785.0,70783.0,0.07063819]
[1773141138601,0.03,70791.0,70783.0,0.07063819]
[1773141139471,0.13920903,70791.0,70782.0,0.07211843]
[1773141140347,0.03,70789.0,70782.0,0.00148]
[1773141140494,0.03,70789.0,70782.0,0.07211912]
[1773141140901,0.03,70785.0,70780.0,0.05324243]
[1773141141111,0.06857802,70785.0,70779.0,0.0706418]
[1773141141340,0.03,70783.0,70780.0,0.00148]
[1773141141563,0.03,70779.0,70776.0,0.07212458]
[1773141141778,0.06857802,70779.0,70776.0,0.07212458]
[1773141141980,0.03,70779.0,70776.0,0.07064458]
[1773141142185,0.03,70779.0,70773.0,0.0706478]
[1773141142412,0.03,70779.0,70772.0,0.07086898]
[1773141142607,0.03,70782.0,70772.0,0.07086898]
[1773141142866,0.03,70780.0,70772.0,0.07086898]
[1773141143497,0.1392199,70780.0,70772.0,0.07086898]
[1773141143697,0.03,70778.0,70772.0,0.07086898]
[1773141143872,0.03,70778.0,70772.0,0.07234898]
[1773141144501,0.07063784,70784.0,70773.0,0.24728094]
[1773141144655,0.07211632,70786.0,70773.0,0.24728094]
[1773141144852,0.10063672,70785.0,70775.0,0.07064641]
[1773141146163,0.12284146,70785.0,70775.0,0.07064641]
[1773141146769,0.10063672,70785.0,70774.0,0.07064678]
[1773141146972,0.10063672,70785.0,70775.0,0.24728094]
[1773141147268,0.10063672,70785.0,70772.0,0.07234885]
[1773141147269,0.03,70783.0,70772.0,0.0017]
[1773141147499,0.05220474,70779.0,70773.0,0.00148]
[1773141147901,0.03,70779.0,70773.0,0.00148]
[1773141148678,0.02220474,70783.0,70773.0,0.00148]
[1773141149647,0.03,70782.0,70774.0,0.07064741]
[1773141151411,0.05220474,70782.0,70774.0,0.07064741]
[1773141153523,0.03,70784.0,70775.0,0.24728094]
[1773141153667,0.030164,70784.0,70775.0,0.24728094]
[1773141154494,0.030164,70784.0,70776.0,0.07064541]
[1773141154700,0.10080172,70784.0,70773.0,0.07234751]
[1773141154860,0.03,70778.0,70773.0,0.00022]
[1773141155066,0.05220474,70776.0,70774.0,0.00148]
[1773141155283,0.05220474,70776.0,70773.0,0.07234789]
[1773141155509,0.05220474,70776.0,70773.0,0.07086789]
[1773141155770,0.05220474,70776.0,70774.0,0.00148]
[1773141156190,0.03,70775.0,70773.0,0.00148]
[1773141156397,0.05220474,70775.0,70773.0,0.00148]
[1773141156610,0.05220474,70775.0,70772.0,1.68e-06]
[1773141156749,0.05220474,70775.0,70772.0,0.00148168]